{"text_format":"3","workbook":"xlsx","n_sheets":3,"sheets":["Informacje o pracowniku","Kalkulator płac","Indywidualny schemat płac"],"not_rendered":{"defined_names":3},"read":"whole","date_system":"1900"}

{"sheet":"Informacje o pracowniku","index":0,"n_rows":7,"n_cols":13,"rows_kept":7,"merged":[[1,0,1,12],[2,0,2,5]]}
[]
["Informacje o pracowniku"]
["[Nazwa firmy]"]
["Identyfikator pracownika","Imię i nazwisko pracownika","Stawka godzinowa","Podatek — stan","Odpisy (z W-4)","Podatek lokalny","Podatek dochodowy (na podstawie odpisów)","Składka na ubezpieczenie społeczne","Składka na opiekę zdrowotną","Suma potrąconych zaliczek na podatek","Odliczenie na ubezpieczenie","Inne odliczenie zwykłe","Suma zwykłych odliczeń (z wyłączeniem podatków)"]
[1,"Tomasz Bator",{"v":10,"d":"10.00 zł"},1,4,{"v":0.023,"d":"2.30%"},{"v":0.28,"d":"28.00%"},{"v":0.063,"d":"6.30%"},{"v":0.0145,"d":"1.45%"},{"$f":"Table1[Podatek lokalny]+Table1[Podatek dochodowy (na podstawie odpisów)]+Table1[Składka na ubezpieczenie społeczne]+Table1[Składka na opiekę zdrowotną]","v":{"v":0.38050000000000006,"d":"38.05%"}},{"v":20,"d":"20.00 zł"},{"v":40,"d":"40.00 zł"},{"$f":"Table1[Odliczenie na ubezpieczenie]+Table1[Inne odliczenie zwykłe]","v":{"v":60,"d":"60.00 zł"}}]
[2,"Rafał Rumian",{"v":13,"d":"13.00 zł"},1,4,{"v":0.023,"d":"2.30%"},{"v":0.28,"d":"28.00%"},{"v":0.063,"d":"6.30%"},{"v":0.0145,"d":"1.45%"},{"$f":"Table1[Podatek lokalny]+Table1[Podatek dochodowy (na podstawie odpisów)]+Table1[Składka na ubezpieczenie społeczne]+Table1[Składka na opiekę zdrowotną]","v":{"v":0.38050000000000006,"d":"38.05%"}},{"v":20,"d":"20.00 zł"},{"v":52,"d":"52.00 zł"},{"$f":"Table1[Odliczenie na ubezpieczenie]+Table1[Inne odliczenie zwykłe]","v":{"v":72,"d":"72.00 zł"}}]
[3,"Aneta Wiśniewska",{"v":10,"d":"10.00 zł"},1,4,{"v":0.023,"d":"2.30%"},{"v":0.28,"d":"28.00%"},{"v":0.063,"d":"6.30%"},{"v":0.0145,"d":"1.45%"},{"$f":"Table1[Podatek lokalny]+Table1[Podatek dochodowy (na podstawie odpisów)]+Table1[Składka na ubezpieczenie społeczne]+Table1[Składka na opiekę zdrowotną]","v":{"v":0.38050000000000006,"d":"38.05%"}},{"v":20,"d":"20.00 zł"},0,{"$f":"Table1[Odliczenie na ubezpieczenie]+Table1[Inne odliczenie zwykłe]","v":{"v":20,"d":"20.00 zł"}}]

{"sheet":"Kalkulator płac","index":1,"n_rows":7,"n_cols":11,"rows_kept":7,"merged":[[0,0,1,8],[2,0,2,5]]}
["Kalkulator płac"]
[{"$nulls":9},"Koniec okresu:","2007-01-31"]
[{"$f":"'Informacje o pracowniku'!$A$3","v":"[Nazwa firmy]"}]
["Identyfikator pracownika","Imię i nazwisko pracownika","Zwykłe godziny pracy","Liczba godzin urlopu","Liczba godzin zwolnienia","Nadgodziny","Stawka za pracę w nadgodzinach","Płaca brutto","Podatki, składki i odliczenia","Inne odliczenia","Płaca netto"]
[1,{"$f":"VLOOKUP(A5,Table1[],2,FALSE)","v":"Tomasz Bator"},{"v":50,"d":"50.00"},{"v":5,"d":"5.00"},{"v":1,"d":"1.00"},null,null,{"$f":"(VLOOKUP(A5,Table1[],3,FALSE)*(Table2[Zwykłe godziny pracy]+Table2[Liczba godzin urlopu]+Table2[Liczba godzin zwolnienia])+Table2[Nadgodziny]*Table2[Stawka za pracę w nadgodzinach])","v":{"v":560,"d":"560.00 zł"}},{"$f":"VLOOKUP(A5,Table1[],10,FALSE)*Table2[Płaca brutto]+Table1[Suma zwykłych odliczeń (z wyłączeniem podatków)]","v":{"v":273.08000000000004,"d":"273.08 zł"}},{"v":20,"d":"20.00 zł"},{"$f":"Table2[Płaca brutto]-Table2[Podatki, składki i odliczenia]-Table2[Inne odliczenia]","v":{"v":266.91999999999996,"d":"266.92 zł"}}]
[2,{"$f":"VLOOKUP(A6,Table1[],2,FALSE)","v":"Rafał Rumian"},{"v":40,"d":"40.00"},{"v":0,"d":"0.00"},{"v":0,"d":"0.00"},null,null,{"$f":"(VLOOKUP(A6,Table1[],3,FALSE)*(Table2[Zwykłe godziny pracy]+Table2[Liczba godzin urlopu]+Table2[Liczba godzin zwolnienia])+Table2[Nadgodziny]*Table2[Stawka za pracę w nadgodzinach])","v":{"v":520,"d":"520.00 zł"}},{"$f":"VLOOKUP(A6,Table1[],10,FALSE)*Table2[Płaca brutto]+Table1[Suma zwykłych odliczeń (z wyłączeniem podatków)]","v":{"v":269.86,"d":"269.86 zł"}},{"v":52,"d":"52.00 zł"},{"$f":"Table2[Płaca brutto]-Table2[Podatki, składki i odliczenia]-Table2[Inne odliczenia]","v":{"v":198.14,"d":"198.14 zł"}}]
[3,{"$f":"VLOOKUP(A7,Table1[],2,FALSE)","v":"Aneta Wiśniewska"},{"v":52,"d":"52.00"},{"v":0,"d":"0.00"},{"v":0,"d":"0.00"},{"v":2,"d":"2.00"},{"v":20,"d":"20.00 zł"},{"$f":"(VLOOKUP(A7,Table1[],3,FALSE)*(Table2[Zwykłe godziny pracy]+Table2[Liczba godzin urlopu]+Table2[Liczba godzin zwolnienia])+Table2[Nadgodziny]*Table2[Stawka za pracę w nadgodzinach])","v":{"v":560,"d":"560.00 zł"}},{"$f":"VLOOKUP(A7,Table1[],10,FALSE)*Table2[Płaca brutto]+Table1[Suma zwykłych odliczeń (z wyłączeniem podatków)]","v":{"v":233.08000000000004,"d":"233.08 zł"}},{"v":20,"d":"20.00 zł"},{"$f":"Table2[Płaca brutto]-Table2[Podatki, składki i odliczenia]-Table2[Inne odliczenia]","v":{"v":306.91999999999996,"d":"306.92 zł"}}]

{"sheet":"Indywidualny schemat płac","index":2,"n_rows":48,"n_cols":8,"rows_kept":48,"merged":[[1,2,1,7],[13,2,13,7],[25,2,25,7],[38,2,38,7]]}
[]
[null,null,{"$f":"('Informacje o pracowniku'!$A$3)","v":"[Nazwa firmy]"}]
[null,null,"Okres:",{"$f":"'Kalkulator płac'!$K$2","v":"2007-01-31"},"Imię i nazwisko pracownika",{"$f":"IFERROR(VLOOKUP(H3,Table1[],2),\"\")","v":"Tomasz Bator"},"Identyfikator pracownika",1]
[]
[null,null,"Podatek — stan",{"$f":"IFERROR(VLOOKUP(H3,Table1[],4),\"\")","v":1},"Odpisy (z W-4)",{"$f":"IFERROR(VLOOKUP(H3,Table1[],5,FALSE),\"\")","v":4},"Godziny przepracowane",{"$f":"IFERROR(VLOOKUP(H3,Table2[],3,FALSE),\"\")","v":50}]
[null,null,"Stawka godzinowa",{"$f":"IFERROR(VLOOKUP(H3,Table1[],3,FALSE),\"\")","v":{"v":10,"d":"10.00 zł"}},"Stawka za pracę w nadgodzinach",{"$f":"IFERROR(VLOOKUP(H3,Table2[],7,FALSE),\"\")","v":0},"Liczba godzin zwolnienia",{"$f":"IFERROR(VLOOKUP(H3,Table2[],5,FALSE),\"\")","v":1}]
[null,null,"Social Security Tax",{"$f":"IFERROR(IFERROR(VLOOKUP(H3,Table1[],8,FALSE),\"\")*H9,\"\")","v":{"v":35.28,"d":"35.28 zł"}},"Podatek dochodowy",{"$f":"IFERROR(IFERROR(VLOOKUP(H3,Table1[],7,FALSE),\"\")*H9,\"\")","v":{"v":156.8,"d":"156.80 zł"}},"Liczba godzin urlopu",{"$f":"IFERROR(VLOOKUP(H3,Table2[],4,FALSE),\"\")","v":5}]
[null,null,"Składka na opiekę zdrowotną",{"$f":"IFERROR(IFERROR(VLOOKUP(H3,Table1[],9,FALSE),\"\")*H9,\"\")","v":{"v":8.120000000000001,"d":"8.12 zł"}},"Podatek lokalny",{"$f":"IFERROR(IFERROR(VLOOKUP(H3,Table1[],6,FALSE),\"\")*H9,\"\")","v":{"v":12.879999999999999,"d":"12.88 zł"}},"Nadgodziny",{"$f":"IFERROR(VLOOKUP(H3,Table2[],6,FALSE),\"\")","v":0}]
[null,null,"Odliczenie na ubezpieczenie",{"$f":"IFERROR(VLOOKUP(H3,Table1[],11,FALSE),\"\")","v":{"v":20,"d":"20.00 zł"}},"Inne odliczenie zwykłe",{"$f":"IFERROR(VLOOKUP(H3,Table1[],12,FALSE),\"\")","v":{"v":40,"d":"40.00 zł"}},"Płaca brutto",{"$f":"IFERROR(VLOOKUP(H3,Table2[],8,FALSE),\"\")","v":{"v":560,"d":"560.00 zł"}}]
[null,null,"Suma podatków, składek i zwykłych odliczeń",{"$f":"IFERROR(SUM(F7:F9)+SUM(D7:D9),\"\")","v":{"v":273.08000000000004,"d":"273.08 zł"}},"Inne odliczenia",{"$f":"IFERROR(VLOOKUP(H3,Table2[],10,FALSE),\"\")","v":{"v":20,"d":"20.00 zł"}},"Suma podatków, składek i odliczeń",{"$f":"IFERROR(IFERROR(VLOOKUP(H3,Table2[],9,FALSE),\"\")+F10,\"\")","v":{"v":293.08000000000004,"d":"293.08 zł"}}]
[{"$nulls":6},"Płaca netto",{"$f":"IFERROR(VLOOKUP(H3,Table2[],11,FALSE),\"\")","v":{"v":266.91999999999996,"d":"266.92 zł"}}]
[]
[]
[null,null,{"$f":"('Informacje o pracowniku'!$A$3)","v":"[Nazwa firmy]"}]
[null,null,"Okres:",{"$f":"'Kalkulator płac'!$K$2","v":"2007-01-31"},"Imię i nazwisko pracownika",{"$f":"IFERROR(VLOOKUP(H15,Table1[],2),\"\")","v":"Rafał Rumian"},"Identyfikator pracownika",2]
[]
[null,null,"Podatek — stan",{"$f":"IFERROR(VLOOKUP(H15,Table1[],4),\"\")","v":1},"Odpisy (z W-4)",{"$f":"IFERROR(VLOOKUP(H15,Table1[],5,FALSE),\"\")","v":4},"Godziny przepracowane",{"$f":"IFERROR(VLOOKUP(H15,Table2[],3,FALSE),\"\")","v":40}]
[null,null,"Stawka godzinowa",{"$f":"IFERROR(VLOOKUP(H15,Table1[],3,FALSE),\"\")","v":{"v":13,"d":"13.00 zł"}},"Stawka za pracę w nadgodzinach",{"$f":"IFERROR(VLOOKUP(H15,Table2[],7,FALSE),\"\")","v":0},"Liczba godzin zwolnienia",{"$f":"IFERROR(VLOOKUP(H15,Table2[],5,FALSE),\"\")","v":0}]
[null,null,"Składka na ubezpieczenie społeczne",{"$f":"IFERROR(IFERROR(VLOOKUP(H15,Table1[],8,FALSE),\"\")*H21,\"\")","v":{"v":32.76,"d":"32.76 zł"}},"Podatek dochodowy",{"$f":"IFERROR(IFERROR(VLOOKUP(H15,Table1[],7,FALSE),\"\")*H21,\"\")","v":{"v":145.60000000000002,"d":"145.60 zł"}},"Liczba godzin urlopu",{"$f":"IFERROR(VLOOKUP(H15,Table2[],4,FALSE),\"\")","v":0}]
[null,null,"Składka na opiekę zdrowotną",{"$f":"IFERROR(IFERROR(VLOOKUP(H15,Table1[],9,FALSE),\"\")*H21,\"\")","v":{"v":7.54,"d":"7.54 zł"}},"Podatek lokalny",{"$f":"IFERROR(IFERROR(VLOOKUP(H15,Table1[],6,FALSE),\"\")*H21,\"\")","v":{"v":11.959999999999999,"d":"11.96 zł"}},"Nadgodziny",{"$f":"IFERROR(VLOOKUP(H15,Table2[],6,FALSE),\"\")","v":0}]
[null,null,"Odliczenie na ubezpieczenie",{"$f":"IFERROR(VLOOKUP(H15,Table1[],11,FALSE),\"\")","v":{"v":20,"d":"20.00 zł"}},"Inne odliczenie zwykłe",{"$f":"IFERROR(VLOOKUP(H15,Table1[],12,FALSE),\"\")","v":{"v":52,"d":"52.00 zł"}},"Płaca brutto",{"$f":"IFERROR(VLOOKUP(H15,Table2[],8,FALSE),\"\")","v":{"v":520,"d":"520.00 zł"}}]
[null,null,"Suma podatków, składek i zwykłych odliczeń",{"$f":"IFERROR(SUM(F19:F21)+SUM(D19:D21),\"\")","v":{"v":269.86,"d":"269.86 zł"}},"Inne odliczenia",{"$f":"IFERROR(VLOOKUP(H15,Table2[],10,FALSE),\"\")","v":{"v":52,"d":"52.00 zł"}},"Suma podatków, składek i odliczeń",{"$f":"IFERROR(IFERROR(VLOOKUP(H15,Table2[],9,FALSE),\"\")+F22,\"\")","v":{"v":321.86,"d":"321.86 zł"}}]
[{"$nulls":6},"Płaca netto",{"$f":"IFERROR(VLOOKUP(H15,Table2[],11,FALSE),\"\")","v":{"v":198.14,"d":"198.14 zł"}}]
[]
[]
[null,null,{"$f":"('Informacje o pracowniku'!$A$3)","v":"[Nazwa firmy]"}]
[null,null,"Okres:",{"$f":"'Kalkulator płac'!$K$2","v":"2007-01-31"},"Imię i nazwisko pracownika",{"$f":"IFERROR(VLOOKUP(H27,Table1[],2),\"\")","v":"Aneta Wiśniewska"},"Identyfikator pracownika",3]
[]
[null,null,"Podatek — stan",{"$f":"IFERROR(VLOOKUP(H27,Table1[],4),\"\")","v":1},"Odpisy (z W-4)",{"$f":"IFERROR(VLOOKUP(H27,Table1[],5,FALSE),\"\")","v":4},"Godziny przepracowane",{"$f":"IFERROR(VLOOKUP(H27,Table2[],3,FALSE),\"\")","v":52}]
[null,null,"Stawka godzinowa",{"$f":"IFERROR(VLOOKUP(H27,Table1[],3,FALSE),\"\")","v":{"v":10,"d":"10.00 zł"}},"Stawka za pracę w nadgodzinach",{"$f":"IFERROR(VLOOKUP(H27,Table2[],7,FALSE),\"\")","v":{"v":20,"d":"20.00 zł"}},"Liczba godzin zwolnienia",{"$f":"IFERROR(VLOOKUP(H27,Table2[],5,FALSE),\"\")","v":0}]
[null,null,"Składka na ubezpieczenie społeczne",{"$f":"IFERROR(IFERROR(VLOOKUP(H27,Table1[],8,FALSE),\"\")*H33,\"\")","v":{"v":35.28,"d":"35.28 zł"}},"Podatek dochodowy",{"$f":"IFERROR(IFERROR(VLOOKUP(H27,Table1[],7,FALSE),\"\")*H33,\"\")","v":{"v":156.8,"d":"156.80 zł"}},"Liczba godzin urlopu",{"$f":"IFERROR(VLOOKUP(H27,Table2[],4,FALSE),\"\")","v":0}]
[null,null,"Składka na opiekę zdrowotną",{"$f":"IFERROR(IFERROR(VLOOKUP(H27,Table1[],9,FALSE),\"\")*H33,\"\")","v":{"v":8.120000000000001,"d":"8.12 zł"}},"Podatek lokalny",{"$f":"IFERROR(IFERROR(VLOOKUP(H27,Table1[],6,FALSE),\"\")*H33,\"\")","v":{"v":12.879999999999999,"d":"12.88 zł"}},"Nadgodziny",{"$f":"IFERROR(VLOOKUP(H27,Table2[],6,FALSE),\"\")","v":2}]
[null,null,"Odliczenie na ubezpieczenie",{"$f":"IFERROR(VLOOKUP(H27,Table1[],11,FALSE),\"\")","v":{"v":20,"d":"20.00 zł"}},"Inne odliczenie zwykłe",{"$f":"IFERROR(VLOOKUP(H27,Table1[],12,FALSE),\"\")","v":0},"Płaca brutto",{"$f":"IFERROR(VLOOKUP(H27,Table2[],8,FALSE),\"\")","v":{"v":560,"d":"560.00 zł"}}]
[null,null,"Suma podatków, składek i zwykłych odliczeń",{"$f":"IFERROR(SUM(F31:F33)+SUM(D31:D33),\"\")","v":{"v":233.08,"d":"233.08 zł"}},"Inne odliczenia",{"$f":"IFERROR(VLOOKUP(H27,Table2[],10,FALSE),\"\")","v":{"v":20,"d":"20.00 zł"}},"Suma podatków, składek i odliczeń",{"$f":"IFERROR(IFERROR(VLOOKUP(H27,Table2[],9,FALSE),\"\")+F34,\"\")","v":{"v":253.08000000000004,"d":"253.08 zł"}}]
[{"$nulls":6},"Płaca netto",{"$f":"IFERROR(VLOOKUP(H27,Table2[],11,FALSE),\"\")","v":{"v":306.91999999999996,"d":"306.92 zł"}}]
[]
[]
[]
[null,null,{"$f":"('Informacje o pracowniku'!$A$3)","v":"[Nazwa firmy]"}]
[null,null,"Okres:",{"$f":"'Kalkulator płac'!$K$2","v":"2007-01-31"},"Imię i nazwisko pracownika",{"$f":"IFERROR(VLOOKUP(H40,Table1[],2),\"\")","v":""},"Identyfikator pracownika"]
[]
[null,null,"Podatek — stan",{"$f":"IFERROR(VLOOKUP(H40,Table1[],4),\"\")","v":""},"Odpisy (z W-4)",{"$f":"IFERROR(VLOOKUP(H40,Table1[],5,FALSE),\"\")","v":""},"Godziny przepracowane",{"$f":"IFERROR(VLOOKUP(H40,Table2[],3,FALSE),\"\")","v":""}]
[null,null,"Stawka godzinowa",{"$f":"IFERROR(VLOOKUP(H40,Table1[],3,FALSE),\"\")","v":""},"Stawka za pracę w nadgodzinach",{"$f":"IFERROR(VLOOKUP(H40,Table2[],7,FALSE),\"\")","v":""},"Liczba godzin zwolnienia",{"$f":"IFERROR(VLOOKUP(H40,Table2[],5,FALSE),\"\")","v":""}]
[null,null,"Składka na ubezpieczenie społeczne",{"$f":"IFERROR(IFERROR(VLOOKUP(H40,Table1[],8,FALSE),\"\")*H46,\"\")","v":""},"Podatek dochodowy",{"$f":"IFERROR(IFERROR(VLOOKUP(H40,Table1[],7,FALSE),\"\")*H46,\"\")","v":""},"Liczba godzin urlopu",{"$f":"IFERROR(VLOOKUP(H40,Table2[],4,FALSE),\"\")","v":""}]
[null,null,"Składka na opiekę zdrowotną",{"$f":"IFERROR(IFERROR(VLOOKUP(H40,Table1[],9,FALSE),\"\")*H46,\"\")","v":""},"Podatek lokalny",{"$f":"IFERROR(IFERROR(VLOOKUP(H40,Table1[],6,FALSE),\"\")*H46,\"\")","v":""},"Nadgodziny",{"$f":"IFERROR(VLOOKUP(H40,Table2[],6,FALSE),\"\")","v":""}]
[null,null,"Odliczenie na ubezpieczenie",{"$f":"IFERROR(VLOOKUP(H40,Table1[],11,FALSE),\"\")","v":""},"Inne odliczenie zwykłe",{"$f":"IFERROR(VLOOKUP(H40,Table1[],12,FALSE),\"\")","v":""},"Płaca brutto",{"$f":"IFERROR(VLOOKUP(H40,Table2[],8,FALSE),\"\")","v":""}]
[null,null,"Suma podatków, składek i zwykłych odliczeń",{"$f":"IFERROR(SUM(F44:F46)+SUM(D44:D46),\"\")","v":0},"Inne odliczenia",{"$f":"IFERROR(VLOOKUP(H40,Table2[],10,FALSE),\"\")","v":""},"Suma podatków, składek i odliczeń",{"$f":"IFERROR(IFERROR(VLOOKUP(H40,Table2[],9,FALSE),\"\")+F47,\"\")","v":""}]
[{"$nulls":6},"Płaca netto",{"$f":"IFERROR(VLOOKUP(H40,Table2[],11,FALSE),\"\")","v":""}]